Cogmind - Beta 14 @@@ ROGUE MODE // 2025.01.12 @ 21:47:46 Player: Peregrine Result: Self-destructed Performance ------------- Evolutions (2) 1000 Regions Visited (3) 600 Robots Destroyed (31) 155 Value Destroyed (857) 857 Prototype IDs (12) 240 Alien Tech Used (0) 0 Bonus (-12) -12 TOTAL SCORE: 2840 Bonus ------- Friendly Fire -12 Cogmind --------- Core Integrity 449/550 Matter 290/300 Energy 250/250 System Corruption 2% Temperature Warm (102) Movement Walking (190) Ox1 Location -8/Materials Parts ------- > --- POWER (1) -------- Ion Engine > --- PROPULSION (4) --- Aluminum Leg Arachnoskeleton > --- UTILITY (4) ------ Advanced Targeting Computer Hardened Light Armor Plating Hacking Suite > --- WEAPON (2) ------- Advanced Beam Rifle Advanced Beam Rifle > --- INVENTORY (5) ---- Light Nuclear Core Aluminum Leg Aluminum Leg Aluminum Leg Small Storage Unit Peak State ------------ > --- POWER ------------ Ion Engine > --- PROPULSION ------- Aluminum Leg Aluminum Leg Arachnoskeleton Wheel Wheel > --- UTILITY ---------- Hardened Light Armor Plating Scrap Shield Hacking Suite > --- WEAPON ----------- Subdweller Shrapnel Launcher Makeshift Sword > --- INVENTORY -------- Small Storage Unit [Rating: 41] Favorites ----------- Power Ion Engine Engine Ion Engine Propulsion Light Treads Treads Light Treads Leg Aluminum Leg Wheel Wheel Flight Unit Flight Unit Utility Sensor Array Device Sensor Array Storage Small Storage Unit Processor Signal Interpreter Hackware Hacking Suite Protection Scrap Shield Weapon Particle Gun Energy Gun Particle Gun Energy Cannon Subdweller Beam Cannon Ballistic Gun Barrage Gun Launcher Grenade Launcher Slashing Weapon Makeshift Sword Special Melee Weapon Datajack Build | -11 -10 -10 -8 ------- Run | Yrd Mat Sub Mat Slots Evolved 4 | . . . 4 Power . | . . . . Propulsion 2 | . . . 2 Utility 2 | . . . 2 Weapon . | . . . . Parts Attached 37 | . 17 9 11 Power 1 | . 1 . . Engine 1 | . 1 . . Core . | . . . . Reactor . | . . . . Propulsion 11 | . 4 2 5 Treads 1 | . 1 . . Leg 5 | . 1 . 4 Wheel 3 | . . 2 1 Hover . | . . . . Flight 2 | . 2 . . Utility 11 | . 5 3 3 Device 3 | . 2 1 . Storage 1 | . 1 . . Processor 2 | . 1 . 1 Hackware 1 | . . . 1 Protection 4 | . 1 2 1 Artifact . | . . . . Weapon 14 | . 7 4 3 Energy Gun 7 | . 4 1 2 Energy Cannon 1 | . . 1 . Ballistic Gun 1 | . . 1 . Ballistic Cannon . | . . . . Launcher 3 | . 2 . 1 Special Weapon . | . . . . Impact Weapon . | . . . . Slashing Weapon 1 | . . 1 . Piercing Weapon . | . . . . Special Melee Weapon 1 | . 1 . . Unidentified Prototypes 1 | . . . 1 Corrupted Parts 1 | . 1 . . System Corruption 1 | . 1 . . Parts Lost 5 | . 3 . 2 Power 1 | . 1 . . Propulsion 2 | . 1 . 1 Utility 1 | . . . 1 Weapon 1 | . 1 . . Highest Loss Streak 3 | . 3 . 1 To Critical Strikes . | . . . . Average Slot Usage (%) 79 | . 83 79 64 Engine 13 | . 13 14 7 Treads 8 | . 9 11 . Leg 4 | . 4 . 17 Wheel 3 | . . 5 7 Flight 1 | . 3 . . Device 7 | . 10 6 . Storage 3 | . 7 . . Processor 4 | . 5 5 . Protection 4 | . . 7 9 Energy Gun 17 | . 23 13 5 Energy Cannon 3 | . . 9 1 Launcher 2 | . 3 . 3 Slashing Weapon 2 | . . 4 4 Peak Build Rating 41 | 6 8 15 41 Average Rating 12 | 6 6 11 36 On Entrance 8 | 6 6 7 15 Naked Turns . | . . . . Heaviest Build 38 | 11 18 35 38 Greatest Support 70 | 20 20 20 70 Greatest Overweight (x) 2 | . 2 1 1 Average Overweight (x) . | . . . . Largest Inventory Capacity 8 | 8 8 5 5 Average Capacity 5 | 8 6 5 5 Most Carried 8 | 6 8 5 5 Average Carried 3 | 6 2 4 3 Final Capacity 8 | 8 5 5 5 Final Carried 6 | 6 3 5 5 Class Distribution -------------------- 89% | Mutant 10% | Scavenger-Mutant Dominant Class ---------------- Mutant | -10/Materials Mutant | -10/Subcaves Mutant | -8/Materials Resources | -11 -10 -10 -8 ----------- Run | Yrd Mat Sub Mat Matter Collected 732 | 200 285 144 103 Remotely . | . . . . Salvage Created 1091 | . 469 145 477 Parts 64 | . 33 14 17 Haulers Intercepted 3 | . 2 . 1 Recyclers Shooed . | . . . . Parts Field Recycled . | . . . . Retrieved Matter . | . . . . Parts Self-Destructed 13 | . . 13 . Prevented . | . . . . Kills | -11 -10 -10 -8 ------- Run | Yrd Mat Sub Mat Combat Hostiles Destroyed 23 | . 10 5 8 Melee 7 | . . . 7 Guns 6 | . 5 . 1 Cannons 4 | . . 4 . AOE 5 | . 5 . . Classes Destroyed 9 | . 5 2 2 Worker 1 | . 1 . . Hauler 3 | . 2 . 1 Operator 1 | . . . 1 Watcher 3 | . 3 . . Swarmer 6 | . 3 3 . Grunt 13 | . 7 . 6 Sentry 2 | . . . 2 Artisan 1 | . . 1 . Subdweller 2 | . . 2 . Best Kill Streak 5 | . 5 3 5 Combat Bots Only 5 | . 5 3 5 Max Kills in Single Turn 2 | . 2 1 1 Gunslinging . | . . . . Exploded 2 | . 2 . . Melee 1 | . . . 1 Uniques/NPCs Destroyed . | . . . . Combat | -11 -10 -10 -8 -------- Run | Yrd Mat Sub Mat Hostile Shots Fired 104 | . 43 15 46 Missed 30 | . 15 5 10 Damage Taken 1224 | . 477 208 539 Core 238 | . 137 . 101 Absorbed by Shields . | . . . . Regen/Repaired (Parts) 46 | . 11 . 35 Core Remaining (%) 72 | 100 . 45 . Volleys Fired 71 | . 38 23 10 Largest 2 | . 2 2 2 Hottest 140 | . 115 140 122 Shots Fired 113 | . 69 27 17 Gun 83 | . 61 6 16 Cannon 22 | . . 21 1 Launcher 8 | . 8 . . Special . | . . . . Kinetic . | . . . . Thermal 83 | . 44 22 17 Explosive 8 | . 8 . . Electromagnetic 22 | . 17 5 . Robot Hit Streak 12 | . 8 12 9 Robot Miss Streak 7 | . 7 2 1 Penetration Max . | . . . . Secondary Targets . | . . . . Shots Hit Robots 96 | . 43 15 38 Core Hits 41 | . 27 4 10 Critical Kills 1 | . . 1 . Critical Parts Destroyed . | . . . . Critical Strikes 10 | . 2 1 7 Burn 5 | . 2 . 3 Meltdown 1 | . . 1 . Sever 4 | . . . 4 Melee Attacks 38 | . 5 1 32 Impact . | . . . . Slashing 33 | . . 1 32 Piercing . | . . . . Sneak Attacks 3 | . . 1 2 Combat Hostiles . | . . . . Follow-up Attacks . | . . . . Damage Inflicted 2568 | . 930 406 1232 Guns 772 | . 481 11 280 Cannons 314 | . . 314 . Explosions 447 | . 447 . . Melee 1027 | . . 75 952 Ramming 8 | . 2 6 . Kinetic . | . . . . Thermal 996 | . 402 314 280 Explosive 371 | . 371 . . Electromagnetic 166 | . 155 11 . Impact . | . . . . Slashing 1027 | . . 75 952 Piercing . | . . . . Highest Corruption 6 | . 1 6 2 Average Corruption 3 | . 1 5 2 Corruption Purged . | . . . . Corruption Blocked . | . . . . Effects 29 | . 5 23 1 Message Errors 5 | . . 5 . Matter Fused 10 | . 2 8 . Heat Flow Errors 5 | . 2 2 1 Energy Discharges 2 | . 1 1 . Parts Fused 1 | . . 1 . Data Loss (minor) 2 | . . 2 . Data Loss (major) 2 | . . 2 . Misfires 1 | . . 1 . Alerts 1 | . . 1 . Overload Shots . | . . . . Overflow Damage 62 | . 3 44 15 Projectiles 9 | . . 9 . Explosions 3 | . 3 . . Melee 50 | . . 35 15 Knockbacks . | . . . . Impact . | . . . . Kinetic . | . . . . Secondary . | . . . . Self-Inflicted Damage 166 | . 160 6 . Shots 7 | . 7 . . Rammed 1 | . 1 . . Targets Rammed 1 | . 1 . . Kicked . | . . . . Crushed . | . . . . Highest Temperature 444 | . 444 202 441 Average Temperature 134 | . 128 32 203 Received Heat Transfer 546 | . 150 36 360 Effects 6 | . 4 . 2 Shutdowns 1 | . 1 . . Energy Bleed 2 | . 1 . 1 Matter Decay 1 | . 1 . . Short Circuit 1 | . . . 1 Damage (minor) 1 | . 1 . . Siege Activations . | . . . . Robots Corrupted . | . . . . Combat Hostiles . | . . . . Parts Fried . | . . . . Impact Corruptions . | . . . . Robots Melted 1 | . . 1 . Combat Hostiles 1 | . . 1 . Parts Melted 7 | . 2 2 3 Heat Transferred 2222 | . 1075 407 740 Parts Sabotaged . | . . . . Parts Stolen . | . . . . Parts Stripped . | . . . . Power Chain Reactions 1 | . 1 . . Alert | -11 -10 -10 -8 ------- Run | Yrd Mat Sub Mat Peak Influence 308 | . 273 . 308 Initial 36 | . . . 36 Average 150 | . 143 . 180 Maximum Alert Level 1 | . 1 . 1 Low Security (%) 74 | 100 80 . 49 Level 1 25 | . 19 . 50 Level 2 . | . . . . Level 3 . | . . . . Level 4 . | . . . . Level 5 . | . . . . High Security . | . . . . Max Security . | . . . . Squads Dispatched 4 | . 3 . 1 Investigation 2 | . 2 . . Extermination . | . . . . Reinforcement 2 | . 1 . 1 Assault . | . . . . Garrison . | . . . . Intercept . | . . . . Searches Triggered . | . . . . Construction Impeded . | . . . . Haulers Reinforced . | . . . . Active Scanning Responses . | . . . . Cargo Convoy Interrupts . | . . . . Stealth | -11 -10 -10 -8 --------- Run | Yrd Mat Sub Mat Distress Signals 1 | . 1 . . Communications Jammed . | . . . . Distress Signals . | . . . . Times Spotted 31 | . 16 5 10 Peak Tracking Total 7 | . 5 3 7 Tactical Retreats 1 | . 1 . . Traps | -11 -10 -10 -8 ------- Run | Yrd Mat Sub Mat Traps Triggered 3 | . 2 . 1 Indirectly . | . . . . Trap Hack Attempts . | . . . . Triggered . | . . . . Disarmed . | . . . . Reprogrammed . | . . . . Reused . | . . . . Traps Extracted . | . . . . Installed . | . . . . Triggered 1 | . . 1 . Machines | -11 -10 -10 -8 ---------- Run | Yrd Mat Sub Mat Machines Disabled 3 | . . 2 1 Max in Single Turn 1 | . . 1 1 Machines Repaired . | . . . . Machines Dismantled . | . . . . Machines Sabotaged . | . . . . Overloaded Fab Kills . | . . . . Hacking | -11 -10 -10 -8 --------- Run | Yrd Mat Sub Mat Machines Accessed 9 | . 6 1 2 Terminals 6 | . 5 . 1 Fabricators . | . . . . Repair Stations 2 | . 1 . 1 Recycling Units . | . . . . Scanalyzers . | . . . . Garrison Access . | . . . . Total Hacks 33 | . 19 9 5 Successful 24 | . 10 9 5 Failed 9 | . 9 . . Catastrophic 1 | . 1 . . Database Lockouts . | . . . . Manual 20 | . 19 . 1 Terminals 19 | . 16 . 3 Fabricators . | . . . . Repair Stations 5 | . 3 . 2 Recycling Units . | . . . . Scanalyzers . | . . . . Garrison Access . | . . . . Terminal Hacks 11 | . . 9 2 Record 8 | . . 8 . Emergency Access Points 1 | . . . 1 Zone Layout 1 | . . . 1 Derelict Proto ID Bank 1 | . . 1 . Fabricator Hacks . | . . . . Repair Station Hacks 4 | . 2 . 2 Scan Component 2 | . 1 . 1 Repair 2 | . 1 . 1 Recycling Unit Hacks . | . . . . Scanalyzer . | . . . . Garrison Access Hacks . | . . . . Unauthorized Hacks 9 | . 8 . 1 Terminals 9 | . 8 . 1 Assimilate 1 | . 1 . . Botnet 5 | . 4 . 1 Disrupt 1 | . 1 . . Operators 2 | . 2 . . Fabricators . | . . . . Repair Stations . | . . . . Recycling Units . | . . . . Scanalyzers . | . . . . Garrison Access . | . . . . Data Cores Recovered . | . . . . Used . | . . . . Hacking Detections 6 | . 5 . 1 Full Trace Events 1 | . 1 . . Feedback Events . | . . . . Feedback Blocked . | . . . . Robot Schematics Acquired . | . . . . Robots Built . | . . . . Authchips . | . . . . Time . | . . . . Total Robot Build Rating . | . . . . Part Schematics Acquired . | . . . . Parts Built . | . . . . Authchips . | . . . . Time . | . . . . Total Part Build Rating . | . . . . Parts Repaired 2 | . 1 . 1 Time 45 | . 26 . 19 Parts Recycled . | . . . . Recycled Matter . | . . . . Retrieved Matter . | . . . . Retrieved Components . | . . . . Parts Scanalyzed . | . . . . Part Schematics Acquired . | . . . . Parts Damaged . | . . . . Bothacking | -11 -10 -10 -8 ------------ Run | Yrd Mat Sub Mat Used RIF Installer . | . . . . Robots Hacked . | . . . . Non-combat . | . . . . Combat . | . . . . Robot Hacks Applied . | . . . . Relay Couplers Released . | . . . . Fabnet Peak Effective % . | . . . . Robots Rewired . | . . . . Allies Hacked . | . . . . Hacks Repelled . | . . . . Allies | -11 -10 -10 -8 -------- Run | Yrd Mat Sub Mat Total Allies . | . . . . Largest Group . | . . . . Highest-Rated Group . | . . . . Highest-Rated Ally . | . . . . Total Orders . | . . . . Ally Attacks . | . . . . Total Damage . | . . . . Kills . | . . . . Allies Corrupted . | . . . . Allies Melted . | . . . . Intel | -11 -10 -10 -8 ------- Run | Yrd Mat Sub Mat Robot Analysis Total . | . . . . Derelict Logs Recovered . | . . . . Drone Launches . | . . . . Drone Recoveries . | . . . . Exploration | -11 -10 -10 -8 ------------- Run | Yrd Mat Sub Mat Turns Passed 2207 | 5 1113 794 295 Spaces Moved 1175 | 5 602 439 129 Core . | . . . . Treads 755 | . 443 312 . Legs 244 | 5 120 . 119 Wheels 137 | . . 127 10 Hover . | . . . . Flight 39 | . 39 . . Fastest Speed 37 | 120 37 80 90 Average Speed 150 | 120 152 162 107 Slowest Speed 240 | 120 200 240 190 Overloaded Moves . | . . . . Propulsion Burnouts . | . . . . Robots Hopped . | . . . . Cave-ins Triggered . | . . . . Exploration Rate (%) 31 | 2 82 26 14 Regions Visited 3 Branch Regions 1 Pre-discovered Areas . | . . . . Known Exits Taken 1 | . 1 . . Unknown Exits Taken 2 | 1 . 1 . Scrap Searched 3 | . . 3 . Spaces Dug . | . . . . Terrain Destroyed 52 | . 50 1 1 Melee . | . . . . Projectile 2 | . . 1 1 AOE 50 | . 50 . . Terrain Rammed 2 | . . 2 . Walls Destroyed . | . . . . Machines Disabled . | . . . . Actions | -11 -10 -10 -8 --------- Run | Yrd Mat Sub Mat Total 1468 | 4 732 496 236 Wait 73 | . 33 2 38 Move 1172 | 4 601 438 129 Hop . | . . . . Pick Up 33 | . 16 7 10 Fast Attach 8 | . . 5 3 Attach 19 | . 9 3 7 Detach 3 | . 3 . . Swap 10 | . 8 1 1 Drop 33 | . 15 12 6 Fire 71 | . 38 23 10 Melee 38 | . 5 1 32 Ram 2 | . . 2 . Kick . | . . . . Crush 1 | . 1 . . Escape Stasis . | . . . . Rewire 3 | . 3 . . Trap . | . . . . Miscellaneous 2 | . . 2 . Route ------- -11/Scrapyard -10/Materials (discovered 5 exits: *Mat x3 / *Min / *Sub) -10/Subcaves -8/Materials History --------- Turn | Location | Event 1 | -11/Scrapyard | Discovered new exit (range 3) 6 | -11/Scrapyard | Entered Materials 117 | -10/Materials | Repaired Flight Unit 205 | -10/Materials | Lost 3 parts (1p1n1w) 231 | -10/Materials | Discovered new exit (range 13) 374 | -10/Materials | Discovered new exit (range 7) 495 | -10/Materials | Core integrity fell below 50% 503 | -10/Materials | Discovered new exit (range 11) 657 | -10/Materials | Build established: Mutant 855 | -10/Materials | Discovered new exit (range 14) 928 | -10/Materials | Identified exit to Materials 1055 | -10/Materials | Identified exit to Mines 1104 | -10/Materials | Discovered new exit (range 9) 1117 | -10/Materials | Identified exit to Subcaves 1119 | -10/Materials | Entered Subcaves 1433 | -10/Subcaves | Visited 4L-MR0's lab 1457 | -10/Subcaves | Found Arachnoskeleton 1862 | -10/Subcaves | Discovered new exit (range 5) 1913 | -10/Subcaves | Entered Materials 1913 | -8/Materials | Evolved 4 slots: Propulsion x2, Utility x2 1915 | -8/Materials | Attached Arachnoskeleton, gained temporary slots: Propulsion x3 2158 | -8/Materials | Repaired Lgt. Nuclear Core 2208 | -8/Materials | Self-destructed Last Messages --------------- 02173_ K-01 Serf collects debris. 02174_ Y-45 Defender heat short circuits Lgt. Treads. 02175_ Y-45 Defender heat damages core (-6). 02175_ Destroyed Lgt. Armor Plating. 02175_ Y-45 Defender suffers critical hit (Burn). 02176_ Arachnoskeleton broken. 02176_ Overheating: Short circuit. 02177_ Y-45 Defender heat spikes uncontrollably. 02179_ Broken Lgt. Treads melted. 02179_ Y-45 Defender destroyed. 02179_ Electrolysis Chamber disabled. 02180_ K-01 Serf collects debris. 02186_ Acquired 5 matter. 02188_ K-01 Serf collects debris. 02194_ System corrupted: Heat flow error (+196). 02195_ K-01 Serf collects debris. 02198_ Overheating: Energy bleed (-62). 02201_ Acquired Adv. Targeting Computer. 02202_ K-01 Serf cleans the Repair Station. 02208_ Connecting with Repair Station... Map ----- +----------------------------------------------------+ | ?????????????????????????????????????????????????? | | ????????????????????????????????????????? ??????? | | ????????????????????????????????????????? ??????? | | ????????????????????????????????????????? ?????? | | ????????????????????????????????????????? #????? | | ???????????????????????#????????????????? #???## | | ??????????????????????? ???????????????? #?? ? | | ??????????????????????? ??????????????## ##? ?? | | ?????????????????????? #??# #??????# # | | ?????????????????????? ########????# # | | ?????????????????????? # #????# T / | | ??????????????????????## ### #????# # | | ???????????????????????# #?# #????# # | | ???????????????????????# #?# #????## ## | | ???????????????????????# #?#[ #?????# ## | | ?????????????????????### ### #?????#! ###### | | ?????????????????????# ###+##########[^ #????? | | ?????????????????????# ]%][ #????? | | ?????????????????????# !% !]#????? | | ?????????????????????# !%!! #????? | | ?????????????????????# ###############%##????? | | ???????????????????#####+#####????# ! !#/#?????? | | ???????????????????# #????# "" ==+ #?????? | | ???????????????????# "" %"" #????# "T !%#=#?????? | | ???????????????????# """k""" #????# "" %=#[#?????? | | ???????????????????# """ @R" #????# ]*#=#?????? | | ???????????????????# """ #????# ] # #?????? | | ???????????????????# ! #????######## #?????? | | ???????????????????# k #???????????# #?????? | | ????????????# + ! #???????????# #?????? | | ????????????# ##############???????????# #?????? | | ?????????????????????????????????????????# #?????? | | ?????????????????????????????????????????# #?????? | | ???????????????????????????????????#######+####### | | ???????????????????????????????????# # | | ???????????????????????????????????# # | | ???????????????????????????????????# + | | ???????????????????????????????????# # | | ???????????????????????????????????# # | | ???????????????????????????????????##########+### | | ??????????????????????????????????????????# ## | | ??????????????????????????????????????????# | | ??????????????????????????????????????????# | | ??????????????????????????????????????????# | | ??????????????????????????????????????????# ## | | ??????????????????????????????????????######"+#### | | ??????????????????????????????????????# | | ??????????????????????????????????????# """ "" | | ??????????????????????????????????????#" """ "" | | ??????????????????????????????????????#T """ "" | +----------------------------------------------------+ Best States ------------- Heat Dissipation 31 Energy Generation 10 Energy Capacity 250 Matter Stores 300 Matter Capacity 300 Sight Range 21 Robot Scan Range 14 Terrain Scan Density 10 Armor Coverage 950 Evasion (%) 62 Recoil Reduction 1 Offensive Hacking 10 Item Schematics ----------------- None Robot Schematics ------------------ None Fabricated ------------ Nothing Alien Tech Used ----------------- None Achievements -------------- None Challenges ------------ None Game ------ Seed HeartImprovedFocus Manual? 0 Play Time 00:25:28 Cumulative 90.4 hours Start 2025.01.12 @ 21:24:21 End 2025.01.12 @ 21:47:46 Sessions 1 Manual Loads 0 Difficulty Rogue Special Mode None Game No. 107 Rogue 92 Adventurer 15 Explorer 0 Win Type - Total 1 Types 0/0/1/0/0/0/0/0/0 Lore% 22 Gallery% 58 Achievement% 48 Wizard Run 0 Options --------- Layout 0 ASCII 0 Keyboard 0 Movement Mouse Keybinds 0 Fullscreen 2 Font 36/Smallcaps Map View 76x50 Zoom Use 0% Tactical HUD 1 Map Filters NONE Filters NONE Steam 1 RUN: 38f71601-6ee6-4ab8-86bc-15ba85e275d6